bitfinex-derivatives/quotes_ETHF0:USTF0_20250701
["timestamp","ask_amount","ask_price","bid_price","bid_amount"]
[1751363256633,0.81485,2454.0,2453.9,0.81484]
[1751363257834,0.81485,2453.9,2453.8,3.15796429]
[1751363258038,0.81485,2453.9,2453.8,0.81486]
[1751363260543,0.81483,2454.0,2453.9,0.81482]
[1751363261645,4.37998429,2454.2,2453.7,2.0158]
[1751363261837,4.37999429,2454.2,2453.7,2.0158]
[1751363262038,5.08249429,2454.2,2453.7,2.0158]
[1751363262240,6.41939429,2454.2,2453.7,2.0158]
[1751363262944,0.81485,2454.0,2453.9,0.81484]
[1751363263838,0.81485,2453.9,2453.8,0.81486]
[1751363264142,0.81484,2454.0,2453.9,0.81485]
[1751363264441,0.81486,2453.9,2453.8,0.81486]
[1751363266040,0.81485,2454.0,2453.9,0.81482]
[1751363267038,0.81485,2453.9,2453.8,1.48575]
[1751363271051,0.81485,2453.9,2453.8,0.6709]
[1751363271647,0.81485,2453.9,2453.8,1.48578]
[1751363274846,0.81484,2454.0,2453.9,0.81483]
[1751363275046,0.81485,2453.9,2453.8,1.48575]
[1751363277155,0.81485,2453.9,2453.8,0.6709]
[1751363277348,0.81485,2453.9,2453.8,1.48578]
[1751363280257,0.81484,2454.0,2453.9,0.81482]
[1751363280455,2.24211,2454.1,2454.0,0.81481]
[1751363280652,2.03681,2454.3,2454.2,0.81473]
[1751363280653,0.81472,2454.3,2454.2,0.81473]
[1751363282153,0.81475,2454.2,2454.1,1.49116]
[1751363283553,0.81475,2454.3,2454.2,0.81473]
[1751363284255,0.81475,2454.2,2454.1,1.49116]
[1751363284658,0.81473,2454.3,2454.2,0.81475]
[1751363285452,1.4345,2454.3,2454.2,0.81475]
[1751363285658,0.6684,2454.4,2454.3,0.81472]
[1751363286360,1.48308,2454.4,2454.3,0.81472]
[1751363287458,0.6684,2454.4,2454.3,0.81472]
[1751363287655,0.7139,2454.5,2454.4,0.81468]
[1751363287862,2.18575,2454.5,2454.4,0.81468]
[1751363288362,0.81472,2454.3,2454.2,0.81472]
[1751363289460,0.81485,2453.9,2453.8,0.81485]
[1751363289667,3.15793429,2454.0,2453.9,0.81485]
[1751363290167,0.81487,2453.9,2453.8,0.81486]
[1751363290367,2.21827,2453.9,2453.8,0.81486]
[1751363290973,2.87207,2453.9,2453.8,0.81486]
[1751363292373,0.81488,2453.8,2453.7,1.4873]
[1751363292873,2.87207,2453.9,2453.8,0.81488]
[1751363293074,2.0572,2453.9,2453.8,0.81488]
[1751363293374,0.81481,2454.1,2454.0,0.81481]
[1751363293675,0.81478,2454.2,2454.1,0.81477]
[1751363293874,2.20304,2454.3,2454.2,0.81475]
[1751363294069,2.20302,2454.3,2454.2,0.81475]
[1751363294470,0.8147,2454.4,2454.3,0.81469]
[1751363294671,0.81474,2454.3,2454.2,0.81472]
[1751363294870,0.8147,2454.4,2454.3,0.81469]
[1751363295066,2.1514,2454.5,2454.4,0.81468]
[1751363295265,4.04043423,2454.6,2454.5,0.81465]
[1751363296071,0.81464,2454.6,2454.5,0.81465]
[1751363296478,1.5252,2454.7,2454.6,0.81462]
[1751363297781,0.81463,2454.6,2454.5,0.81462]
[1751363299077,1.52521,2454.7,2454.6,0.81462]
[1751363299276,2.95601,2454.7,2454.6,0.81462]
[1751363300576,0.81463,2454.6,2454.5,0.81462]
[1751363301279,2.95601,2454.7,2454.6,0.81462]
[1751363303583,0.81462,2454.6,2454.5,1.51592]
[1751363305186,2.95601,2454.7,2454.6,0.81462]
[1751363305480,0.81462,2454.6,2454.5,1.51593]
[1751363306388,2.956,2454.7,2454.6,0.81462]
[1751363306575,0.81462,2454.6,2454.5,1.51593]
[1751363309179,2.13532,2454.6,2454.5,1.51593]
[1751363309584,2.13532,2454.6,2454.5,0.7013]
[1751363309785,2.13532,2454.6,2454.5,1.51595]
[1751363309985,2.13532,2454.6,2454.5,0.7013]
[1751363310684,2.13532,2454.6,2454.5,1.51595]
[1751363311085,2.13532,2454.6,2454.5,0.7013]
[1751363311385,2.13532,2454.6,2454.5,1.51595]
[1751363311583,2.13532,2454.6,2454.5,0.7013]
[1751363311778,0.81471,2454.4,2454.1,4.38004429]
[1751363312075,0.81471,2454.4,2454.3,0.81469]
[1751363313489,0.81472,2454.3,2454.2,1.47142]
[1751363313987,0.8147,2454.4,2454.3,0.81466]
[1751363316189,0.81471,2454.3,2454.2,1.47143]
[1751363316486,0.81471,2454.3,2454.2,0.6567]
[1751363316877,0.81471,2454.3,2454.2,1.47145]
[1751363317489,0.81471,2454.3,2454.2,0.6567]
[1751363317684,0.81478,2454.1,2454.0,0.6897]
[1751363317885,0.81481,2454.0,2453.9,0.707]
[1751363318285,0.81481,2454.0,2453.9,1.52185]
[1751363318483,0.81487,2453.9,2453.7,0.81488]
[1751363318791,0.81487,2453.9,2453.8,0.707]
[1751363319193,0.81484,2454.0,2453.8,0.707]
[1751363319393,0.81484,2454.0,2453.9,0.81482]
[1751363322497,0.81491,2453.7,2453.6,0.6759]
[1751363322697,0.81495,2453.6,2453.5,2.74199963]
[1751363322897,0.81495,2453.6,2453.5,1.52307]
[1751363324898,1.53734,2453.7,2453.6,0.81495]
[1751363326192,0.7224,2453.7,2453.6,0.81495]
[1751363326593,0.81491,2453.7,2453.6,0.81495]
[1751363326994,0.81491,2453.8,2453.7,0.81488]
[1751363327195,0.81488,2453.9,2453.8,0.81484]
[1751363327389,0.81488,2453.9,2453.8,3.15794429]
[1751363328498,0.81483,2454.0,2453.9,0.81481]
[1751363328700,0.81483,2454.0,2453.9,1.46911]
[1751363329195,0.6788,2454.2,2453.9,0.6543]
[1751363329498,0.81476,2454.2,2454.1,0.81475]
[1751363330389,1.47103,2454.3,2454.2,0.81474]
[1751363330595,1.47103,2454.3,2454.0,2.34310429]
[1751363330596,0.81477,2454.2,2454.1,0.81475]
[1751363331098,0.81478,2454.1,2454.0,0.81477]
[1751363332798,2.14857,2454.2,2454.1,0.81478]
[1751363333705,2.14857,2454.2,2454.1,0.83014048]
[1751363334403,2.14857,2454.2,2454.1,0.01536048]
[1751363334603,2.14857,2454.2,2454.1,0.83013048]
[1751363334806,2.14857,2454.2,2454.1,0.84364694]
[1751363335706,2.14857,2454.2,2454.1,0.02887694]
[1751363335902,5.19907429,2454.2,2454.1,0.02887694]
[1751363338204,10.19907429,2454.2,2454.1,0.02887694]
[1751363340506,5.19907429,2454.2,2454.1,0.02887694]
[1751363342205,10.19907429,2454.2,2454.1,0.02887694]
[1751363342406,0.81498,2453.5,2453.4,0.81499]
[1751363342611,24.12209852,2454.2,2453.3,4.38069429]
[1751363342612,2.34310429,2453.8,2453.3,4.38069429]
[1751363342806,2.03708,2454.0,2453.6,0.81491]
[1751363342807,0.81491,2453.7,2453.6,0.81491]
[1751363343011,2.74978,2454.0,2453.7,0.81489]
[1751363343215,4.08778,2454.0,2453.7,0.81489]
[1751363343402,0.8149,2453.8,2453.7,0.81489]
[1751363343814,0.8149,2453.7,2453.6,1.52781]
[1751363344711,0.8149,2453.8,2453.7,0.81489]
[1751363344912,0.8149,2453.7,2453.6,2.24721]
[1751363347114,0.81489,2453.8,2453.7,0.81488]
[1751363348608,0.81486,2453.9,2453.8,0.81485]
[1751363349318,0.8148,2454.1,2454.0,0.81479]
[1751363349519,0.8148,2454.0,2453.9,3.15791429]
[1751363349816,0.81479,2454.1,2454.0,0.81478]
[1751363352520,0.81482,2454.0,2453.9,0.81481]
[1751363354014,0.8148,2454.1,2454.0,0.81479]
[1751363354416,0.81482,2454.0,2453.9,0.81481]
[1751363355216,0.81479,2454.1,2454.0,0.81478]
[1751363355520,4.04052423,2454.3,2454.2,0.81474]
[1751363355817,4.04052423,2454.3,2454.1,0.81475]
[1751363355818,0.81476,2454.2,2454.1,0.81475]
[1751363361727,4.04051423,2454.3,2454.2,0.81474]
[1751363361929,0.81472,2454.3,2454.2,0.81474]
[1751363363032,4.04049423,2454.4,2454.3,0.8147]
[1751363363628,0.8147,2454.4,2454.3,0.8147]
[1751363366533,0.81472,2454.3,2454.2,0.81471]
[1751363366730,0.81472,2454.3,2454.2,0.7193]
[1751363367233,0.81472,2454.3,2454.2,1.53404]
[1751363368035,0.81472,2454.3,2454.2,0.7193]
[1751363369135,0.81472,2454.3,2454.2,1.53404]
[1751363369334,0.81472,2454.3,2454.2,0.7193]
[1751363370035,0.81472,2454.3,2454.2,1.53404]
[1751363370538,0.81472,2454.3,2454.2,0.7193]
[1751363371034,2.34310429,2454.3,2454.0,0.81479]
[1751363371226,0.81482,2454.1,2454.0,0.81479]
[1751363371431,0.6537,2454.2,2454.1,0.81477]
[1751363371626,2.03653,2454.6,2454.1,2.34310429]
[1751363371827,0.8147,2454.4,2454.3,0.81468]
[1751363372828,0.81471,2454.3,2454.2,1.51261]
[1751363373233,0.8147,2454.4,2454.3,0.81468]
[1751363376341,0.81467,2454.5,2454.4,0.81467]
[1751363376740,0.6537,2454.6,2454.5,0.81464]
[1751363376741,0.81463,2454.6,2454.5,0.81464]
[1751363378542,0.81467,2454.5,2454.4,0.81465]
[1751363380342,0.81464,2454.6,2454.5,0.81462]
[1751363382149,0.81467,2454.5,2454.4,0.81465]
[1751363382949,0.81464,2454.6,2454.5,0.81462]
[1751363383651,0.81463,2454.6,2454.5,0.81461]
[1751363385547,0.81467,2454.5,2454.4,0.81465]
[1751363385753,0.81464,2454.6,2454.5,0.81462]
[1751363385953,0.81466,2454.5,2454.4,0.81465]
[1751363387454,0.81469,2454.4,2454.3,0.81468]
[1751363388950,1.52146,2454.5,2454.4,0.81468]
[1751363389554,0.81469,2454.4,2454.3,0.81468]
[1751363396157,2.17689,2454.4,2454.3,0.81468]
[1751363396351,0.81471,2454.3,2454.2,2.21563]
[1751363396654,0.81471,2454.3,2454.2,0.6979]
[1751363396855,0.81471,2454.3,2454.2,1.51264]
[1751363398653,1.52147,2454.5,2454.4,0.81468]
[1751363398854,0.81467,2454.5,2454.4,0.81468]
[1751363399055,2.73885,2454.7,2454.5,0.81462]
[1751363399056,0.81465,2454.6,2454.5,0.81462]
[1751363399254,0.81465,2454.6,2454.5,3.15772429]
[1751363400763,0.81464,2454.5,2454.4,0.81465]
[1751363402558,0.81463,2454.6,2454.5,0.81461]
[1751363402753,2.7207,2454.7,2454.5,0.81461]
[1751363402959,3.5353,2454.7,2454.6,0.81461]
[1751363403654,0.81461,2454.6,2454.5,1.51472]
[1751363404359,3.5353,2454.7,2454.6,0.81461]
[1751363406665,4.03224279,2454.9,2454.8,0.81454]
[1751363406863,4.84678279,2454.9,2454.8,0.41718659]
[1751363407163,0.81454,2454.9,2454.8,0.41718659]
[1751363407560,0.8146,2454.7,2454.6,0.81458]
[1751363407760,4.06571045,2454.7,2454.6,0.81458]
[1751363409262,3.25111045,2454.7,2454.6,0.81458]
[1751363409566,4.06569045,2454.7,2454.6,0.81458]
[1751363409866,3.25111045,2454.7,2454.6,0.81458]
[1751363410366,4.06569045,2454.7,2454.6,0.81458]
[1751363412973,0.81461,2454.6,2454.5,3.85782429]
[1751363413971,4.06571045,2454.7,2454.6,0.81461]
[1751363414869,0.8146,2454.7,2454.6,0.81461]
[1751363416471,0.81457,2454.8,2454.7,0.81454]
[1751363418468,1.4123,2454.9,2454.8,0.81454]
[1751363418665,0.81448,2455.0,2454.9,0.81451]
[1751363418873,0.81448,2455.0,2454.9,3.15761429]
[1751363419066,0.81448,2455.0,2454.9,3.87231429]
[1751363424276,0.81448,2455.0,2454.9,1.52921]
[1751363424474,0.8146,2454.7,2454.6,0.8146]
[1751363424873,2.0901,2454.9,2454.6,2.34310429]
[1751363425072,0.81456,2454.8,2454.7,0.81454]
[1751363425379,0.81456,2454.8,2454.7,1.49364]
[1751363426079,2.90464,2454.9,2454.8,0.81454]
[1751363427478,10.83764,2455.5,2454.7,1.49365]
[1751363427678,5.60879776,2456.2,2455.4,2.34310429]
[1751363427871,10.41633869,2456.4,2456.1,2.34310429]
[1751363428076,4.1727605,2456.6,2456.5,0.81398]
[1751363428274,10.55834033,2457.6,2457.2,0.81375]
[1751363428480,0.81371,2457.3,2457.2,13.44505702]
[1751363428678,10.55834033,2457.6,2457.2,13.44505702]
[1751363428883,11.37197033,2457.6,2457.4,3.15677429]
[1751363429271,2.03322,2458.6,2457.7,0.81355]
[1751363429585,0.81349,2458.0,2457.8,11.499]
[1751363429778,43.14310429,2458.3,2457.8,11.499]
[1751363430282,40.8,2458.3,2457.8,13.84210429]
[1751363430579,0.8135,2458.0,2457.8,13.84210429]
[1751363430970,0.81352,2457.9,2457.8,13.84210429]
[1751363431170,0.81352,2457.9,2457.8,11.499]
[1751363431377,8.15662429,2457.9,2457.8,11.499]
[1751363432381,5.81352,2457.9,2457.8,11.499]
[1751363434380,0.81371,2457.3,2457.2,4.47749314]
[1751363434681,2.03422,2457.4,2456.8,4.47749314]
[1751363434983,2.03429,2457.3,2456.6,5.15069314]
[1751363435184,0.81391,2456.7,2456.6,0.6732]
[1751363435375,1.4307,2457.2,2456.4,4.47749314]
[1751363435376,0.81398,2456.5,2456.4,4.47749314]
[1751363435577,0.81398,2456.5,2456.3,0.6867]
[1751363436581,0.81401,2456.4,2456.3,0.6867]
[1751363441484,0.81401,2456.4,2456.3,2.0836]
[1751363442388,0.81401,2456.4,2456.3,0.6867]
[1751363442591,0.81411,2456.1,2456.0,26.31582]
[1751363442783,0.81411,2456.1,2456.0,27.71272]
[1751363445089,0.81411,2456.1,2456.0,2.90772]
[1751363445288,13.57113,2456.3,2455.8,0.6941]
[1751363445485,13.57113,2456.3,2455.9,0.81415]
[1751363445486,0.81418,2456.0,2455.9,0.81415]
[1751363445986,0.81418,2455.9,2455.8,1.50828]
[1751363446382,0.81418,2455.9,2455.8,2.9189301]
[1751363446692,0.81431,2455.5,2455.4,2.68875963]
[1751363446894,0.81431,2455.5,2455.4,2.06597932]
[1751363447188,0.81431,2455.5,2455.4,1.41047932]
[1751363447586,0.81436,2455.4,2455.3,0.81436]
[1751363447891,0.81436,2455.4,2455.3,1.41103297]
[1751363448887,12.3513,2455.6,2455.5,0.81431]
[1751363449191,0.81434,2455.5,2455.4,0.81432]
[1751363449389,0.81434,2455.5,2455.4,1.41207645]
[1751363450188,0.81434,2455.5,2455.4,2.22641645]
[1751363450990,0.81434,2455.5,2455.4,0.81434]
[1751363451691,0.81437,2455.4,2455.3,0.81435]
[1751363452284,0.81433,2455.5,2455.4,0.81431]
[1751363452484,0.81433,2455.5,2455.4,5.29180314]
[1751363452795,0.81433,2455.5,2455.4,4.47749314]
[1751363453490,0.81414,2456.1,2455.4,9.47749314]
[1751363453688,0.6643,2456.5,2456.0,4.47749314]
[1751363453894,2.03472,2456.8,2456.3,4.47749314]
[1751363454088,13.57372,2456.8,2456.3,4.47749314]
[1751363454288,0.81397,2456.6,2456.4,0.81401]
[1751363454994,0.81397,2456.6,2456.5,0.81398]
[1751363455495,13.57372,2456.8,2456.3,4.47749314]
[1751363455696,0.81399,2456.5,2456.4,0.814]
[1751363456490,0.81399,2456.5,2456.3,4.47749314]
[1751363456792,0.81401,2456.4,2456.3,0.81403]
[1751363457188,0.814,2456.5,2456.3,0.81403]
[1751363457387,0.814,2456.5,2456.4,0.81401]
[1751363458395,0.814,2456.5,2456.1,8.63507314]
[1751363458396,0.81402,2456.4,2456.3,0.81402]
[1751363458596,0.814,2456.5,2456.4,0.814]
[1751363460200,12.35197,2456.6,2456.5,0.81397]
[1751363460402,0.814,2456.5,2456.4,0.814]
[1751363460699,0.81402,2456.4,2456.3,0.81402]
[1751363460997,0.81401,2456.5,2456.4,0.814]
[1751363461299,0.81396,2456.6,2456.5,0.81395]
[1751363462502,0.81396,2456.6,2456.5,0.81398]
[1751363462503,0.81397,2456.6,2456.5,0.81398]
[1751363462894,0.81399,2456.5,2456.4,0.81399]
[1751363463100,0.81397,2456.6,2456.5,0.81398]
[1751363463302,0.81397,2456.6,2456.5,0.81397]
[1751363463599,0.81397,2456.6,2456.2,2.0352]
[1751363463600,0.81403,2456.4,2456.3,0.81402]
[1751363463798,0.81401,2456.5,2456.4,0.814]
[1751363463998,0.81403,2456.4,2456.3,0.81402]
[1751363464199,0.81406,2456.3,2456.2,0.81405]
[1751363465098,1.4081,2456.7,2456.2,2.03514]
[1751363465299,0.81385,2457.0,2456.9,0.81383]
[1751363465504,0.81385,2457.0,2456.9,5.29132314]
[1751363465796,0.81379,2457.1,2456.8,0.81386]
[1751363466099,0.81382,2457.0,2456.7,2.21029]
[1751363466300,0.81388,2456.8,2456.5,0.81396]
[1751363466499,12.35088,2456.8,2456.5,0.81396]
[1751363466698,12.35088,2456.8,2456.7,0.81391]
[1751363466898,11.537,2456.8,2456.7,0.81391]
[1751363467398,36.377,2456.8,2456.7,0.81391]
[1751363468309,37.19089,2456.8,2456.7,0.81391]
[1751363468503,37.7537,2456.8,2456.7,0.81391]
[1751363469205,38.56758,2456.8,2456.7,0.81391]
[1751363470107,37.7537,2456.8,2456.7,0.81391]
[1751363470504,11.537,2456.8,2456.7,0.81391]
[1751363470704,36.379,2456.8,2456.7,0.81391]
[1751363471208,37.19288,2456.8,2456.7,0.81391]
[1751363471504,12.35088,2456.8,2456.7,0.81391]
[1751363471705,37.18888,2456.8,2456.7,0.81391]
[1751363473611,36.375,2456.8,2456.7,0.81391]
[1751363474611,36.364,2456.8,2456.7,0.81391]
[1751363475413,36.361,2456.8,2456.7,0.81391]
[1751363476020,11.537,2456.8,2456.7,0.81391]
[1751363476315,11.544,2456.9,2456.8,0.81388]
[1751363476512,36.363,2456.9,2456.8,2.87648]
[1751363476713,0.81379,2457.1,2457.0,0.81381]
[1751363476916,25.63179,2457.1,2457.0,0.81381]
[1751363477117,0.81378,2457.2,2457.1,0.81376]
[1751363477316,37.18878,2457.2,2457.1,0.81376]
[1751363477513,0.81378,2457.2,2457.1,0.81376]
[1751363477717,37.18678,2457.2,2457.1,0.81376]
[1751363478017,0.81378,2457.2,2457.1,0.81376]
[1751363478223,37.18377,2457.2,2457.1,0.81376]
[1751363479221,37.17877,2457.2,2457.1,0.81376]
[1751363479520,37.17777,2457.2,2457.1,0.81376]
[1751363481122,37.17277,2457.2,2457.1,0.81376]
[1751363481625,37.17177,2457.2,2457.1,0.81376]
[1751363481924,37.17077,2457.2,2457.1,0.81376]
[1751363482527,37.16977,2457.2,2457.1,0.81376]
[1751363482721,12.35673,2457.3,2457.2,0.81373]
[1751363483026,36.352,2457.3,2457.2,0.81371]
[1751363483228,37.16771,2457.3,2457.2,0.81371]
[1751363483431,11.543,2457.3,2457.2,0.81371]
[1751363483623,36.353,2457.3,2457.2,0.81371]
[1751363483922,37.16574,2457.3,2457.2,0.81373]
[1751363484423,36.354,2457.3,2456.9,0.6891]
[1751363484626,0.81378,2457.2,2457.1,0.81376]
[1751363484922,12.35673,2457.3,2457.2,0.81375]
[1751363485128,11.543,2457.3,2457.2,3.14638788]
[1751363485330,37.16271,2457.3,2457.2,3.14638788]
[1751363485823,37.16271,2457.3,2457.2,0.81375]
[1751363486325,12.35671,2457.3,2457.2,0.81375]
[1751363486723,37.15771,2457.3,2457.2,0.81375]
[1751363487827,0.81377,2457.2,2457.1,0.81376]
[1751363488125,0.81385,2456.9,2456.8,1.52647]
[1751363488325,25.61085,2456.9,2456.8,1.52647]
[1751363488629,25.61085,2456.9,2456.8,0.7126]
[1751363488927,25.61085,2456.9,2456.8,1.52648]
[1751363489523,24.797,2456.9,2456.8,1.52648]
[1751363489724,25.61085,2456.9,2456.8,1.52648]
[1751363489929,24.797,2456.9,2456.8,1.52648]
[1751363490131,25.61085,2456.9,2456.8,1.52648]
[1751363494034,25.61085,2456.9,2456.8,0.7126]
[1751363494235,25.61085,2456.9,2456.8,1.52648]
[1751363494734,0.81385,2456.9,2456.8,1.52648]
[1751363494934,25.60585,2456.9,2456.8,1.52648]
[1751363495133,25.60585,2456.9,2456.8,0.7126]
[1751363495329,0.81385,2456.9,2456.8,1.52648]
[1751363495632,25.60585,2456.9,2456.8,1.52648]
[1751363495824,25.60585,2456.9,2456.8,0.81388]
[1751363496227,25.60585,2456.9,2456.8,2.21327628]
[1751363497130,0.81385,2456.9,2456.8,2.21327628]
[1751363497330,25.59885,2456.9,2456.8,2.21327628]
[1751363497531,0.81385,2456.9,2456.8,2.21327628]
[1751363497733,25.59785,2456.9,2456.8,2.21327628]
[1751363498135,0.81385,2456.9,2456.8,2.21327628]
[1751363498336,25.59585,2456.9,2456.8,2.21327628]
[1751363499438,0.81385,2456.9,2456.8,2.21327628]
[1751363499628,25.59485,2456.9,2456.8,2.21327628]
[1751363500436,25.59485,2456.9,2456.8,1.39939628]
[1751363503744,0.81391,2456.7,2456.6,1.50562]
[1751363503945,0.81391,2456.7,2456.6,2.8968886]
[1751363503946,12.33291,2456.7,2456.6,2.8968886]
[1751363505645,12.33291,2456.7,2456.6,2.0829686]
[1751363506646,12.33291,2456.7,2456.6,2.8969186]
[1751363507150,12.33291,2456.7,2456.6,2.0829686]
[1751363507344,12.33291,2456.7,2456.6,2.8969186]
[1751363513046,11.519,2456.7,2456.6,2.8969186]
[1751363513239,11.519,2456.7,2456.6,5.23083433]
[1751363513540,36.262,2456.7,2456.6,6.61523433]
[1751363513739,37.07591,2456.7,2456.6,1.3912686]
[1751363514451,0.81401,2456.4,2456.3,2.72188997]
[1751363514648,24.744,2456.4,2456.3,4.09768592]
[1751363515752,24.744,2456.4,2456.3,2.88201595]
[1751363515953,24.744,2456.4,2456.3,4.10179053]
[1751363516253,24.744,2456.4,2456.3,4.50364591]
[1751363516953,0.81396,2456.6,2456.5,0.81398]
[1751363517148,25.55496,2456.6,2456.5,2.18977595]
[1751363517853,25.55296,2456.6,2456.5,2.18977595]
[1751363518249,11.519,2456.7,2456.6,0.81394]
[1751363518448,36.258,2456.7,2456.6,2.18973595]
[1751363518953,37.07191,2456.7,2456.6,2.18973595]
[1751363521763,12.33291,2456.7,2456.6,2.18973595]
[1751363522057,37.07191,2456.7,2456.6,2.18973595]
[1751363524558,37.07191,2456.7,2456.6,1.37579595]
[1751363524758,40.77612573,2456.7,2456.6,1.37579595]
[1751363524960,0.81394,2456.6,2456.5,0.81396]
[1751363525259,0.81394,2456.6,2456.5,1.36536729]
[1751363526257,0.81398,2456.5,2456.4,0.81398]
[1751363526460,25.55298,2456.5,2456.4,0.81398]
[1751363527059,0.81398,2456.5,2456.4,0.81398]
[1751363527262,25.55298,2456.5,2456.4,0.81398]
[1751363527762,0.81401,2456.4,2456.3,0.6922]
[1751363528666,0.81401,2456.4,2456.3,1.50624]
[1751363529666,25.553,2456.5,2456.4,0.81401]
[1751363530271,0.81401,2456.4,2456.3,1.50622]
[1751363530470,12.33292,2456.7,2456.6,0.81394]
[1751363530672,0.81394,2456.6,2456.5,3.14786573]
[1751363532177,25.55394,2456.6,2456.5,3.14786573]
[1751363532365,25.55394,2456.6,2456.5,3.86056573]
[1751363533372,0.81394,2456.6,2456.5,3.86056573]
[1751363533572,25.55394,2456.6,2456.5,3.86056573]
[1751363533772,0.81394,2456.6,2456.5,3.86056573]
[1751363534172,25.55394,2456.6,2456.5,3.86056573]
[1751363536082,0.81394,2456.6,2456.5,3.86056573]
[1751363536277,12.33293,2456.7,2456.6,0.81394]
[1751363536476,37.07293,2456.7,2456.6,0.81394]
[1751363536778,0.81394,2456.6,2456.5,3.86056573]
[1751363537381,25.55294,2456.6,2456.5,3.86056573]
[1751363538575,25.55294,2456.6,2456.5,1.52665]
[1751363538774,0.81394,2456.6,2456.5,1.52665]
[1751363538976,25.55294,2456.6,2456.5,1.52665]
[1751363539880,0.81394,2456.6,2456.5,1.52665]
[1751363540079,25.55294,2456.6,2456.5,1.52665]
[1751363540579,0.81394,2456.6,2456.5,1.52665]
[1751363540778,25.55294,2456.6,2456.5,1.52665]
[1751363541472,0.81394,2456.6,2456.5,1.52665]
[1751363541879,25.55294,2456.6,2456.5,1.52665]
[1751363542476,25.55294,2456.6,2456.5,0.7127]
[1751363542980,0.81401,2456.4,2456.3,0.6922]
[1751363543184,0.81401,2456.4,2456.3,2.05516599]
[1751363543185,25.55301,2456.4,2456.3,2.05516599]
[1751363544476,25.55301,2456.4,2456.3,2.86918599]
[1751363544677,0.81401,2456.4,2456.3,2.86918599]
[1751363545181,25.55201,2456.4,2456.3,2.86918599]
[1751363545883,0.814,2456.5,2456.4,0.81401]
[1751363546180,25.552,2456.5,2456.4,2.17697599]
[1751363547783,0.814,2456.5,2456.4,2.17697599]
[1751363547983,25.552,2456.5,2456.4,2.17697599]
[1751363548683,0.814,2456.5,2456.4,2.17697599]
[1751363548886,25.552,2456.5,2456.4,2.17697599]
[1751363549079,11.519,2456.7,2456.5,0.81396]
[1751363549278,0.81397,2456.6,2456.5,0.81396]
[1751363549579,25.55097,2456.6,2456.5,2.14516]
[1751363550179,0.81397,2456.6,2456.5,3.50809882]
[1751363550380,25.55097,2456.6,2456.5,1.36293882]
[1751363550780,27.60387,2456.6,2456.5,1.36293882]
[1751363551980,2.86687,2456.6,2456.5,1.36293882]
[1751363552181,27.60387,2456.6,2456.5,1.36293882]
[1751363554083,2.86687,2456.6,2456.5,1.36293882]
[1751363554283,26.25637,2456.6,2456.5,1.36293882]
[1751363554481,1.52037,2456.6,2456.5,1.36293882]
[1751363554681,26.25637,2456.6,2456.5,1.36293882]
[1751363557190,1.52037,2456.6,2456.5,1.36293882]
[1751363557384,0.81397,2456.6,2456.5,2.17691882]
[1751363557583,25.54897,2456.6,2456.5,1.36293882]
[1751363558488,26.89657,2456.6,2456.5,1.36293882]
[1751363559691,2.16157,2456.6,2456.5,1.36293882]
[1751363559884,26.89657,2456.6,2456.5,1.36293882]
[1751363560084,0.81401,2456.4,2456.3,3.02611573]
[1751363560288,25.54901,2456.4,2456.3,4.38856804]
[1751363561086,0.81401,2456.4,2456.3,5.20260804]
[1751363561289,37.04501,2456.4,2456.3,5.20260804]
[1751363561488,37.04501,2456.4,2456.3,2.05465231]
[1751363563692,12.31001,2456.4,2456.3,2.05465231]
[1751363563993,37.04401,2456.4,2456.3,2.05465231]
[1751363567595,37.04401,2456.4,2456.3,2.86869231]
[1751363567796,37.04401,2456.4,2456.3,2.05465231]
[1751363569591,37.04401,2456.4,2456.3,2.86869231]
[1751363569791,37.04401,2456.4,2456.3,2.05465231]
[1751363570192,37.04401,2456.4,2456.3,4.08849682]
[1751363570995,37.04401,2456.4,2456.3,3.27445682]
[1751363574296,37.04401,2456.4,2456.3,2.05465231]
[1751363576298,37.04401,2456.4,2456.3,2.86869231]
[1751363576794,37.04401,2456.4,2456.3,2.05465231]
[1751363577500,37.04401,2456.4,2456.3,1.36245231]
[1751363577501,14.64392573,2456.4,2456.3,1.36245231]
[1751363577696,0.81411,2456.1,2456.0,2.70603451]
[1751363577902,25.54411,2456.1,2456.0,4.06563104]
[1751363578095,25.54411,2456.1,2456.0,3.25150104]
[1751363578595,25.54411,2456.1,2456.0,2.03169653]
[1751363578995,24.73,2456.1,2456.0,3.25150104]
[1751363579201,24.73,2456.1,2456.0,4.06564104]
[1751363579500,24.73,2456.1,2456.0,2.84583653]
[1751363579901,24.73,2456.1,2456.0,4.06564104]
[1751363581297,0.81405,2456.3,2456.0,5.28679104]
[1751363581504,70.144,2456.4,2456.3,0.81404]
[1751363581704,94.873,2456.4,2456.3,3.14795573]
[1751363582705,70.144,2456.4,2456.3,3.14795573]
[1751363582903,94.873,2456.4,2456.3,3.14795573]
[1751363583105,58.648,2456.4,2456.3,3.14795573]
[1751363583304,0.81396,2456.6,2456.3,3.14795573]
[1751363583305,0.81396,2456.6,2456.5,0.81398]
[1751363583505,37.03896,2456.6,2456.5,3.14789573]
[1751363584200,37.03896,2456.6,2456.5,2.33391573]
[1751363585102,37.03796,2456.6,2456.5,3.14789573]
[1751363586309,0.81396,2456.6,2456.5,3.14789573]
[1751363586499,37.03696,2456.6,2456.5,3.14789573]
[1751363586703,37.03696,2456.6,2456.5,2.33391573]
[1751363587008,37.03696,2456.6,2456.5,3.14789573]
[1751363587309,36.223,2456.6,2456.5,3.14789573]
[1751363587507,37.03694,2456.6,2456.5,3.14789573]
[1751363588404,0.81389,2456.8,2456.7,0.81389]